[Event "*** SCC Grand Prix: Titled Tuesday Blitz"]
[Site "Chess.com"]
[Date "2020.06.02"]
[Round "3"]
[White "gixfantastix"]
[Black "BabyBoss31"]
[Result "1-0"]
[WhiteElo "2081"]
[BlackElo "2292"]
[TimeControl "180+1"]
[EndTime "10:28:12 PDT"]
[Termination "gixfantastix won by resignation"]

1. e4 {[%clk 0:03:00.9]} 1... e6 {[%clk 0:02:59.7]} 2. d4 {[%clk 0:02:50.1]}
2... d5 {[%clk 0:03:00.6]} 3. Nc3 {[%clk 0:01:47.1]} 3... Nf6 {[%clk 0:03:00.3]}
4. e5 {[%clk 0:01:47.1]} 4... Nfd7 {[%clk 0:03:00.7]} 5. f4 {[%clk 0:01:47.6]}
5... c5 {[%clk 0:03:01.4]} 6. Nf3 {[%clk 0:01:48.1]} 6... Nc6 {[%clk 0:03:02.1]}
7. Be3 {[%clk 0:01:47.9]} 7... a6 {[%clk 0:03:02.3]} 8. Qd2 {[%clk 0:01:47.4]}
8... b5 {[%clk 0:02:46.2]} 9. Be2 {[%clk 0:01:45.3]} 9... Qb6 {[%clk 0:02:42.6]}
10. O-O {[%clk 0:01:41.7]} 10... cxd4 {[%clk 0:02:38.2]} 11. Nxd4 {[%clk
0:01:42.6]} 11... Bc5 {[%clk 0:02:36]} 12. Rad1 {[%clk 0:01:42.1]} 12... Bb7
{[%clk 0:02:31.6]} 13. Kh1 {[%clk 0:01:40.9]} 13... O-O {[%clk 0:02:19]} 14. Bg1
{[%clk 0:01:26.6]} 14... Nxd4 {[%clk 0:01:53]} 15. Bxd4 {[%clk 0:01:27.5]} 15...
Bxd4 {[%clk 0:01:53.4]} 16. Qxd4 {[%clk 0:01:27.5]} 16... Rac8 {[%clk
0:01:53.6]} 17. Qd3 {[%clk 0:01:20.1]} 17... Rfd8 {[%clk 0:01:52.3]} 18. Qh3
{[%clk 0:01:18.2]} 18... b4 {[%clk 0:01:44.6]} 19. Bd3 {[%clk 0:01:18.1]} 19...
bxc3 {[%clk 0:01:27.6]} 20. Qxh7+ {[%clk 0:01:17.4]} 20... Kf8 {[%clk
0:01:28.1]} 21. bxc3 {[%clk 0:01:17.9]} 21... g6 {[%clk 0:01:07.1]} 22. Rb1
{[%clk 0:01:16.9]} 22... Qc6 {[%clk 0:01:04.3]} 23. Rf3 {[%clk 0:01:11.3]} 23...
Nc5 {[%clk 0:00:56.8]} 24. Qh8+ {[%clk 0:01:09.6]} 24... Ke7 {[%clk 0:00:51.7]}
25. Qf6+ {[%clk 0:01:10.5]} 25... Ke8 {[%clk 0:00:52.2]} 26. Rh3 {[%clk
0:01:07.8]} 26... Nd7 {[%clk 0:00:31.9]} 27. Rh8+ {[%clk 0:00:57.6]} 27... Nf8
{[%clk 0:00:30.6]} 28. Bxg6 {[%clk 0:00:57.9]} 28... Qd7 {[%clk 0:00:23.3]} 29.
Qg7 {[%clk 0:00:46.6]} 29... Qe7 {[%clk 0:00:20.3]} 30. Rxb7 {[%clk 0:00:41]}
30... Qxb7 {[%clk 0:00:15.2]} 31. Rxf8+ {[%clk 0:00:39.6]} 31... Kd7 {[%clk
0:00:15.7]} 32. Rxf7+ {[%clk 0:00:37.6]} 1-0

[Event "*** SCC Grand Prix: Titled Tuesday Blitz"]
[Site "Chess.com"]
[Date "2020.06.02"]
[Round "3"]
[White "rynos0411"]
[Black "anastasiyakarlovych"]
[Result "1/2-1/2"]
[WhiteElo "2447"]
[BlackElo "1884"]
[TimeControl "180+1"]
[EndTime "10:28:15 PDT"]
[Termination "Game drawn by agreement"]

1. d4 {[%clk 0:03:00.9]} 1... d5 {[%clk 0:02:57.9]} 2. c4 {[%clk 0:03:00.9]}
2... Bf5 {[%clk 0:02:57.1]} 3. cxd5 {[%clk 0:02:59.2]} 3... Bxb1 {[%clk
0:02:56.1]} 4. Qa4+ {[%clk 0:02:57.7]} 4... c6 {[%clk 0:02:53.6]} 5. dxc6 {[%clk
0:02:54]} 5... Nxc6 {[%clk 0:02:52.9]} 6. Rxb1 {[%clk 0:02:53.3]} 6... e5 {[%clk
0:02:51.6]} 7. e3 {[%clk 0:02:37.3]} 7... Bb4+ {[%clk 0:02:47.2]} 8. Bd2 {[%clk
0:02:27.3]} 8... Bxd2+ {[%clk 0:02:45.7]} 9. Kxd2 {[%clk 0:02:27.7]} 9... exd4
{[%clk 0:02:45.5]} 10. exd4 {[%clk 0:02:26.6]} 10... Qxd4+ {[%clk 0:02:39.2]}
11. Qxd4 {[%clk 0:02:25.6]} 11... Nxd4 {[%clk 0:02:39.1]} 12. Re1+ {[%clk
0:02:23.5]} 12... Ne7 {[%clk 0:02:36.6]} 13. Bc4 {[%clk 0:02:21.9]} 13... Rd8
{[%clk 0:02:30.1]} 14. Kc3 {[%clk 0:02:21.8]} 14... Nc6 {[%clk 0:02:26.6]} 15.
Nf3 {[%clk 0:02:19.6]} 15... O-O {[%clk 0:02:25.5]} 16. Re2 {[%clk 0:02:11.9]}
16... Rc8 {[%clk 0:02:06.3]} 17. Rhe1 {[%clk 0:02:06.4]} 17... a6 {[%clk
0:01:54.7]} 18. b3 {[%clk 0:01:57.3]} 18... b5 {[%clk 0:01:30]} 19. Bd3 {[%clk
0:01:55.4]} 19... Ne5+ {[%clk 0:01:26.3]} 20. Kd2 {[%clk 0:01:44.8]} 20... Nxd3
{[%clk 0:01:15.3]} 21. Kxd3 {[%clk 0:01:45.7]} 21... Rfd8+ {[%clk 0:01:14.7]}
22. Ke4 {[%clk 0:01:40.9]} 22... Nd5 {[%clk 0:00:58.9]} 23. Rd2 {[%clk 0:01:25]}
23... Nf6+ {[%clk 0:00:39.7]} 24. Kf4 {[%clk 0:01:22]} 24... Rxd2 {[%clk
0:00:28.4]} 25. Nxd2 {[%clk 0:01:18.9]} 25... h6 {[%clk 0:00:23.3]} 26. a4
{[%clk 0:01:03.2]} 26... bxa4 {[%clk 0:00:20.8]} 27. bxa4 {[%clk 0:01:04.1]}
27... Rc2 {[%clk 0:00:20.6]} 1/2-1/2

[Event "*** SCC Grand Prix: Titled Tuesday Blitz"]
[Site "Chess.com"]
[Date "2020.06.02"]
[Round "3"]
[White "btmilhome"]
[Black "WeAintSurePal"]
[Result "0-1"]
[WhiteElo "1756"]
[BlackElo "2241"]
[TimeControl "180+1"]
[EndTime "10:28:15 PDT"]
[Termination "WeAintSurePal won by resignation"]

1. e4 {[%clk 0:03:00.9]} 1... c6 {[%clk 0:03:00.9]} 2. d3 {[%clk 0:03:00.8]}
2... d5 {[%clk 0:03:01.6]} 3. exd5 {[%clk 0:02:57.8]} 3... cxd5 {[%clk
0:03:02.5]} 4. Nf3 {[%clk 0:02:57.3]} 4... g6 {[%clk 0:03:02.7]} 5. c3 {[%clk
0:02:53.6]} 5... Bg7 {[%clk 0:03:03.6]} 6. d4 {[%clk 0:02:53.5]} 6... Nf6 {[%clk
0:03:03.5]} 7. Bd3 {[%clk 0:02:52.2]} 7... O-O {[%clk 0:03:03.8]} 8. O-O {[%clk
0:02:52.8]} 8... Nc6 {[%clk 0:03:04.4]} 9. Re1 {[%clk 0:02:52.9]} 9... Bg4
{[%clk 0:03:04.8]} 10. h3 {[%clk 0:02:52.1]} 10... Bxf3 {[%clk 0:03:04.5]} 11.
Qxf3 {[%clk 0:02:53]} 11... e6 {[%clk 0:03:05.1]} 12. Bg5 {[%clk 0:02:51.1]}
12... h6 {[%clk 0:03:05]} 13. Bh4 {[%clk 0:02:46.6]} 13... Rb8 {[%clk
0:03:04.4]} 14. a4 {[%clk 0:02:42.6]} 14... b6 {[%clk 0:03:02.9]} 15. Nd2 {[%clk
0:02:41.5]} 15... Rc8 {[%clk 0:03:00.3]} 16. Ba6 {[%clk 0:02:36.5]} 16... Rc7
{[%clk 0:02:56.3]} 17. Bg3 {[%clk 0:02:34.3]} 17... Re7 {[%clk 0:02:55.1]} 18.
Bb5 {[%clk 0:02:23.8]} 18... Na5 {[%clk 0:02:45.3]} 19. Re2 {[%clk 0:02:04.2]}
19... Nb7 {[%clk 0:02:44.3]} 20. Rae1 {[%clk 0:01:57.9]} 20... Nd6 {[%clk
0:02:44.3]} 21. Bd3 {[%clk 0:01:48.3]} 21... Nf5 {[%clk 0:02:43.7]} 22. Be5
{[%clk 0:01:44.5]} 22... Kh7 {[%clk 0:02:03]} 23. g4 {[%clk 0:01:12.5]} 23...
Nh4 {[%clk 0:01:53.6]} 24. Qf4 {[%clk 0:01:06.6]} 24... Ne8 {[%clk 0:01:47.2]}
25. Bxg7 {[%clk 0:00:41.4]} 25... Nxg7 {[%clk 0:01:46.2]} 26. Qg3 {[%clk
0:00:40.6]} 26... Rc7 {[%clk 0:01:41.3]} 27. f4 {[%clk 0:00:37.4]} 27... f5
{[%clk 0:01:36.4]} 28. g5 {[%clk 0:00:30.9]} 28... hxg5 {[%clk 0:01:36.1]} 29.
fxg5 {[%clk 0:00:31.8]} 29... Rh8 {[%clk 0:01:28.9]} 30. Qxh4+ {[%clk
0:00:31.6]} 30... Kg8 {[%clk 0:01:29.5]} 31. Qg3 {[%clk 0:00:31.4]} 31... Nh5
{[%clk 0:01:20.8]} 32. Qf3 {[%clk 0:00:29.9]} 32... Qxg5+ {[%clk 0:01:17]} 33.
Kf2 {[%clk 0:00:28]} 33... Nf4 {[%clk 0:01:10.3]} 34. Rg1 {[%clk 0:00:22.4]}
34... Qh4+ {[%clk 0:01:10]} 35. Kf1 {[%clk 0:00:20.9]} 35... Qxh3+ {[%clk
0:00:53.7]} 36. Qxh3 {[%clk 0:00:20.4]} 36... Rxh3 {[%clk 0:00:54.6]} 37. Rf2
{[%clk 0:00:19.7]} 37... Nxd3 {[%clk 0:00:52.7]} 38. Rxg6+ {[%clk 0:00:19.4]}
38... Rg7 {[%clk 0:00:52.2]} 39. Rxg7+ {[%clk 0:00:17.1]} 39... Kxg7 {[%clk
0:00:50.5]} 40. Nf3 {[%clk 0:00:17.7]} 0-1

[Event "*** SCC Grand Prix: Titled Tuesday Blitz"]
[Site "Chess.com"]
[Date "2020.06.02"]
[Round "3"]
[White "DonBroca"]
[Black "dbrankovic68"]
[Result "0-1"]
[WhiteElo "2195"]
[BlackElo "2449"]
[TimeControl "180+1"]
[EndTime "10:28:16 PDT"]
[Termination "dbrankovic68 won by checkmate"]

1. e4 {[%clk 0:03:00.9]} 1... c5 {[%clk 0:02:59.7]} 2. Nf3 {[%clk 0:02:59.3]}
2... g6 {[%clk 0:03:00]} 3. d4 {[%clk 0:02:58]} 3... cxd4 {[%clk 0:03:00.2]} 4.
Nxd4 {[%clk 0:02:58.8]} 4... Bg7 {[%clk 0:03:00.4]} 5. c4 {[%clk 0:02:59.3]}
5... Nc6 {[%clk 0:03:00.8]} 6. Be3 {[%clk 0:02:59.4]} 6... Nf6 {[%clk
0:03:01.4]} 7. Nc3 {[%clk 0:02:59.6]} 7... Ng4 {[%clk 0:03:01.2]} 8. Qxg4 {[%clk
0:02:58]} 8... Nxd4 {[%clk 0:03:01.3]} 9. Qd1 {[%clk 0:02:58.5]} 9... e5 {[%clk
0:03:01.5]} 10. Bd3 {[%clk 0:02:54]} 10... O-O {[%clk 0:03:01.2]} 11. O-O {[%clk
0:02:54.4]} 11... d6 {[%clk 0:03:01.4]} 12. Nd5 {[%clk 0:02:53.1]} 12... Be6
{[%clk 0:02:58.8]} 13. Rc1 {[%clk 0:02:51.8]} 13... a6 {[%clk 0:02:46]} 14. Bb1
{[%clk 0:02:38.5]} 14... Rc8 {[%clk 0:02:44.4]} 15. b3 {[%clk 0:02:38.3]} 15...
Re8 {[%clk 0:02:37.3]} 16. Qd3 {[%clk 0:02:25.1]} 16... Bxd5 {[%clk 0:02:20.3]}
17. cxd5 {[%clk 0:02:12.9]} 17... Qa5 {[%clk 0:02:17.2]} 18. f4 {[%clk
0:01:46.9]} 18... Rxc1 {[%clk 0:01:40.7]} 19. Rxc1 {[%clk 0:01:45.6]} 19... h6
{[%clk 0:01:29.9]} 20. fxe5 {[%clk 0:01:19.8]} 20... dxe5 {[%clk 0:01:28.2]} 21.
Kf2 {[%clk 0:00:38.7]} 21... Qd8 {[%clk 0:01:23.8]} 22. Kg1 {[%clk 0:00:29.3]}
22... Qh4 {[%clk 0:01:19.2]} 23. g3 {[%clk 0:00:26.9]} 23... Qg4 {[%clk
0:01:17.9]} 24. Bxd4 {[%clk 0:00:23.7]} 24... exd4 {[%clk 0:01:17.8]} 25. Kf2
{[%clk 0:00:22.3]} 25... Qh5 {[%clk 0:01:11.5]} 26. h4 {[%clk 0:00:20.4]} 26...
Qg4 {[%clk 0:01:05.3]} 27. Qf3 {[%clk 0:00:19.1]} 27... Qd7 {[%clk 0:01:03.6]}
28. Bd3 {[%clk 0:00:18.7]} 28... Be5 {[%clk 0:00:58.5]} 29. Rc4 {[%clk
0:00:18.4]} 29... Rf8 {[%clk 0:00:51.6]} 30. Kg2 {[%clk 0:00:18.4]} 30... Qd6
{[%clk 0:00:48.5]} 31. Qg4 {[%clk 0:00:17.6]} 31... Kg7 {[%clk 0:00:44.7]} 32.
Rc8 {[%clk 0:00:17]} 32... h5 {[%clk 0:00:44.9]} 33. Qh3 {[%clk 0:00:15.5]}
33... Rxc8 {[%clk 0:00:44]} 34. Qxc8 {[%clk 0:00:16.2]} 34... Bxg3 {[%clk
0:00:44.1]} 35. Qxb7 {[%clk 0:00:14.2]} 35... Bxh4 {[%clk 0:00:41.7]} 36. Kf3
{[%clk 0:00:12.7]} 36... Qg3+ {[%clk 0:00:41.1]} 37. Ke2 {[%clk 0:00:13.6]}
37... Qe3+ {[%clk 0:00:41.2]} 38. Kf1 {[%clk 0:00:13]} 38... Qf2# {[%clk
0:00:40.9]} 0-1

[Event "*** SCC Grand Prix: Titled Tuesday Blitz"]
[Site "Chess.com"]
[Date "2020.06.02"]
[Round "3"]
[White "SaqoChess_Twitch"]
[Black "Perecke"]
[Result "0-1"]
[WhiteElo "2395"]
[BlackElo "2182"]
[TimeControl "180+1"]
[EndTime "10:28:16 PDT"]
[Termination "Perecke won by checkmate"]

1. d4 {[%clk 0:03:00.9]} 1... d5 {[%clk 0:02:59.8]} 2. c4 {[%clk 0:03:00.6]}
2... e6 {[%clk 0:02:59.9]} 3. Nc3 {[%clk 0:03:00]} 3... Nf6 {[%clk 0:02:59.4]}
4. Nf3 {[%clk 0:02:59.3]} 4... Be7 {[%clk 0:02:59.4]} 5. Bg5 {[%clk 0:02:58.6]}
5... h6 {[%clk 0:02:58.4]} 6. Bh4 {[%clk 0:02:58.1]} 6... O-O {[%clk 0:02:57.9]}
7. e3 {[%clk 0:02:57.8]} 7... Nbd7 {[%clk 0:02:55.4]} 8. Bd3 {[%clk 0:02:57.4]}
8... dxc4 {[%clk 0:02:53.8]} 9. Bxc4 {[%clk 0:02:57.4]} 9... a6 {[%clk
0:02:54.2]} 10. O-O {[%clk 0:02:56.7]} 10... b5 {[%clk 0:02:52]} 11. Bd3 {[%clk
0:02:56.3]} 11... c5 {[%clk 0:02:52.2]} 12. dxc5 {[%clk 0:02:49.4]} 12... Nxc5
{[%clk 0:02:49.1]} 13. Bc2 {[%clk 0:02:49.7]} 13... Bb7 {[%clk 0:02:46.2]} 14.
b4 {[%clk 0:02:48.8]} 14... Ncd7 {[%clk 0:02:20]} 15. a3 {[%clk 0:02:47.3]}
15... Nd5 {[%clk 0:02:14]} 16. Nxd5 {[%clk 0:02:46]} 16... Bxd5 {[%clk
0:02:14.9]} 17. Bxe7 {[%clk 0:02:45.1]} 17... Qxe7 {[%clk 0:02:15.8]} 18. e4
{[%clk 0:02:45.6]} 18... Bb7 {[%clk 0:02:12.7]} 19. Re1 {[%clk 0:02:46.2]} 19...
Rfd8 {[%clk 0:02:11.6]} 20. Qe2 {[%clk 0:02:43.8]} 20... Nb6 {[%clk 0:02:08.8]}
21. Bb3 {[%clk 0:02:44]} 21... Rac8 {[%clk 0:02:05.1]} 22. Rac1 {[%clk 0:02:40]}
22... Qd6 {[%clk 0:01:41.4]} 23. e5 {[%clk 0:02:35.7]} 23... Qd3 {[%clk
0:01:27.1]} 24. Rxc8 {[%clk 0:02:29.5]} 24... Bxc8 {[%clk 0:00:56.5]} 25. Qxd3
{[%clk 0:02:27.1]} 25... Rxd3 {[%clk 0:00:56.1]} 26. Re3 {[%clk 0:02:28]} 26...
Rxe3 {[%clk 0:00:48.6]} 27. fxe3 {[%clk 0:02:27.1]} 27... Bb7 {[%clk 0:00:47.4]}
28. Kf2 {[%clk 0:02:26]} 28... Kf8 {[%clk 0:00:47.8]} 29. Nd4 {[%clk 0:02:21.2]}
29... Nd7 {[%clk 0:00:43.1]} 30. Nf3 {[%clk 0:02:11.4]} 30... Ke7 {[%clk
0:00:39]} 31. Bc2 {[%clk 0:02:06.2]} 31... Bxf3 {[%clk 0:00:37.2]} 32. gxf3
{[%clk 0:02:04.3]} 32... Nxe5 {[%clk 0:00:37.6]} 33. Be4 {[%clk 0:02:04.8]}
33... Nc4 {[%clk 0:00:22.1]} 34. Bb7 {[%clk 0:02:04.2]} 34... Nxa3 {[%clk
0:00:21.8]} 35. Bxa6 {[%clk 0:02:04.7]} 35... Kd6 {[%clk 0:00:22.4]} 36. Ke2
{[%clk 0:02:02.2]} 36... Kc6 {[%clk 0:00:22.3]} 37. Kd3 {[%clk 0:02:01.2]} 37...
Nc4 {[%clk 0:00:19.4]} 38. h4 {[%clk 0:01:55.1]} 38... Nd6 {[%clk 0:00:19]} 39.
Kd4 {[%clk 0:01:52.6]} 39... Kb6 {[%clk 0:00:18.9]} 40. e4 {[%clk 0:01:46.5]}
40... Kxa6 {[%clk 0:00:18.3]} 41. Kc5 {[%clk 0:01:47.2]} 41... Nc4 {[%clk
0:00:17.5]} 42. Kc6 {[%clk 0:01:46.5]} 42... Nd2 {[%clk 0:00:17.3]} 43. Kd7
{[%clk 0:01:42.8]} 43... Nxf3 {[%clk 0:00:16.9]} 44. Ke7 {[%clk 0:01:43.3]}
44... Nxh4 {[%clk 0:00:13.8]} 45. Kxf7 {[%clk 0:01:42.7]} 45... g5 {[%clk
0:00:14.1]} 46. Kxe6 {[%clk 0:01:40.6]} 46... g4 {[%clk 0:00:13.6]} 47. Kd7
{[%clk 0:01:41.1]} 47... g3 {[%clk 0:00:12.5]} 48. e5 {[%clk 0:01:42]} 48... g2
{[%clk 0:00:12.9]} 49. e6 {[%clk 0:01:42.9]} 49... Nf5 {[%clk 0:00:13]} 50. e7
{[%clk 0:01:43.8]} 50... Nxe7 {[%clk 0:00:12.9]} 51. Ke6 {[%clk 0:01:43.1]}
51... g1=Q {[%clk 0:00:13.8]} 52. Kf7 {[%clk 0:01:44]} 52... Qg6+ {[%clk
0:00:13.3]} 53. Kf8 {[%clk 0:01:43.2]} 53... Kb6 {[%clk 0:00:13.5]} 54. Kxe7
{[%clk 0:01:42.3]} 54... Kc7 {[%clk 0:00:13.5]} 55. Kf8 {[%clk 0:01:43]} 55...
Qh7 {[%clk 0:00:13.2]} 56. Ke8 {[%clk 0:01:42.9]} 56... Kd6 {[%clk 0:00:13.5]}
57. Kf8 {[%clk 0:01:43.8]} 57... Ke6 {[%clk 0:00:12.1]} 58. Ke8 {[%clk
0:01:44.1]} 58... Qg8# {[%clk 0:00:13]} 0-1

[Event "*** SCC Grand Prix: Titled Tuesday Blitz"]
[Site "Chess.com"]
[Date "2020.06.02"]
[Round "3"]
[White "MrChampion_Coach"]
[Black "almo64"]
[Result "0-1"]
[WhiteElo "2441"]
[BlackElo "2810"]
[TimeControl "180+1"]
[EndTime "10:28:17 PDT"]
[Termination "almo64 won by checkmate"]

1. e4 {[%clk 0:03:00.9]} 1... c5 {[%clk 0:02:59.5]} 2. Nf3 {[%clk 0:02:59.5]}
2... Nc6 {[%clk 0:02:59.7]} 3. Bb5 {[%clk 0:02:57.6]} 3... g6 {[%clk 0:02:59.6]}
4. Bxc6 {[%clk 0:02:54.8]} 4... dxc6 {[%clk 0:03:00]} 5. d3 {[%clk 0:02:54]}
5... Bg7 {[%clk 0:03:00.2]} 6. h3 {[%clk 0:02:54.1]} 6... b6 {[%clk 0:02:58.9]}
7. Nc3 {[%clk 0:02:54.4]} 7... e5 {[%clk 0:02:58.6]} 8. O-O {[%clk 0:02:51.2]}
8... Qe7 {[%clk 0:02:55.8]} 9. Nh2 {[%clk 0:02:52.1]} 9... Nf6 {[%clk 0:02:55]}
10. f4 {[%clk 0:02:51.1]} 10... exf4 {[%clk 0:02:54.1]} 11. Bxf4 {[%clk
0:02:52]} 11... Nh5 {[%clk 0:02:52.3]} 12. Be3 {[%clk 0:02:46.3]} 12... Be6
{[%clk 0:02:52.3]} 13. a4 {[%clk 0:02:30.5]} 13... a5 {[%clk 0:02:50.7]} 14. Qd2
{[%clk 0:02:22.9]} 14... O-O-O {[%clk 0:02:46.2]} 15. g4 {[%clk 0:02:09.1]}
15... Nf6 {[%clk 0:02:44.8]} 16. Bh6 {[%clk 0:02:06.7]} 16... Bxh6 {[%clk
0:02:38.7]} 17. Qxh6 {[%clk 0:02:07.6]} 17... Nd7 {[%clk 0:02:37.8]} 18. Nf3
{[%clk 0:02:04.8]} 18... f6 {[%clk 0:02:33]} 19. Rae1 {[%clk 0:02:02]} 19... Kb7
{[%clk 0:02:31.8]} 20. e5 {[%clk 0:01:49.4]} 20... f5 {[%clk 0:02:29.6]} 21. g5
{[%clk 0:01:38.2]} 21... Nf8 {[%clk 0:02:18.7]} 22. Nh4 {[%clk 0:01:31.3]} 22...
Bc8 {[%clk 0:02:15.1]} 23. Ng2 {[%clk 0:01:30.4]} 23... Ne6 {[%clk 0:02:14.2]}
24. h4 {[%clk 0:01:29]} 24... Rd4 {[%clk 0:02:12.9]} 25. Ne2 {[%clk 0:01:22.5]}
25... Rg4 {[%clk 0:02:12]} 26. Nf4 {[%clk 0:01:19.6]} 26... Rd8 {[%clk
0:02:01.8]} 27. Kh2 {[%clk 0:01:14.8]} 27... Rd4 {[%clk 0:01:58.8]} 28. Nxe6
{[%clk 0:01:07.4]} 28... Bxe6 {[%clk 0:01:57.5]} 29. c3 {[%clk 0:01:00.9]} 29...
Rxa4 {[%clk 0:01:55.3]} 30. c4 {[%clk 0:00:59.5]} 30... b5 {[%clk 0:01:38]} 31.
Rf4 {[%clk 0:00:42.8]} 31... bxc4 {[%clk 0:01:14.1]} 32. Rxg4 {[%clk 0:00:38.3]}
32... fxg4 {[%clk 0:01:14]} 33. dxc4 {[%clk 0:00:32]} 33... Rxc4 {[%clk
0:01:10.6]} 34. Ne3 {[%clk 0:00:20.1]} 34... Re4 {[%clk 0:01:07.4]} 35. h5
{[%clk 0:00:18.5]} 35... Bc8 {[%clk 0:00:47.5]} 36. hxg6 {[%clk 0:00:12.6]}
36... Qxe5+ {[%clk 0:00:46.4]} 37. Kg1 {[%clk 0:00:12.7]} 37... Qg3+ {[%clk
0:00:45]} 38. Ng2 {[%clk 0:00:11]} 38... Rxe1# {[%clk 0:00:44.7]} 0-1

[Event "*** SCC Grand Prix: Titled Tuesday Blitz"]
[Site "Chess.com"]
[Date "2020.06.02"]
[Round "3"]
[White "Quaternitychess"]
[Black "Carnivoras"]
[Result "1-0"]
[WhiteElo "2822"]
[BlackElo "2620"]
[TimeControl "180+1"]
[EndTime "10:28:18 PDT"]
[Termination "Quaternitychess won by resignation"]

1. e4 {[%clk 0:03:00.9]} 1... e5 {[%clk 0:02:58.9]} 2. Nf3 {[%clk 0:02:56.3]}
2... Nc6 {[%clk 0:02:59.4]} 3. Nc3 {[%clk 0:02:56.9]} 3... Nf6 {[%clk
0:02:58.3]} 4. h3 {[%clk 0:02:57.4]} 4... Bb4 {[%clk 0:02:57.7]} 5. Nd5 {[%clk
0:02:56.6]} 5... Ba5 {[%clk 0:02:50.1]} 6. c3 {[%clk 0:02:52.5]} 6... O-O {[%clk
0:02:47.3]} 7. b4 {[%clk 0:02:43.9]} 7... Bb6 {[%clk 0:02:46.9]} 8. Nxb6 {[%clk
0:02:43.5]} 8... axb6 {[%clk 0:02:47.8]} 9. d3 {[%clk 0:02:43.5]} 9... d5 {[%clk
0:02:47.4]} 10. Qc2 {[%clk 0:02:43.4]} 10... Re8 {[%clk 0:01:55.8]} 11. Be2
{[%clk 0:02:42.1]} 11... Qd6 {[%clk 0:01:47.4]} 12. O-O {[%clk 0:02:40.2]} 12...
Ne7 {[%clk 0:01:37.8]} 13. Re1 {[%clk 0:02:12.2]} 13... Ng6 {[%clk 0:01:36]} 14.
Bf1 {[%clk 0:02:12]} 14... h6 {[%clk 0:01:33.6]} 15. a3 {[%clk 0:02:07.2]} 15...
Bd7 {[%clk 0:01:33.8]} 16. exd5 {[%clk 0:01:42.2]} 16... Nxd5 {[%clk 0:01:29.2]}
17. g3 {[%clk 0:01:30.2]} 17... Ba4 {[%clk 0:01:13.9]} 18. Qd2 {[%clk
0:01:19.8]} 18... Rad8 {[%clk 0:00:47.1]} 19. c4 {[%clk 0:01:18.6]} 19... Nf6
{[%clk 0:00:40.3]} 20. b5 {[%clk 0:00:55.1]} 20... c6 {[%clk 0:00:38.6]} 21. Qb4
{[%clk 0:00:45.9]} 21... Qxb4 {[%clk 0:00:33.1]} 22. axb4 {[%clk 0:00:46.8]}
22... cxb5 {[%clk 0:00:33.6]} 23. Bb2 {[%clk 0:00:47.1]} 23... Nd7 {[%clk
0:00:17.9]} 24. d4 {[%clk 0:00:44.1]} 24... exd4 {[%clk 0:00:16.8]} 25. Rxe8+
{[%clk 0:00:40.8]} 25... Rxe8 {[%clk 0:00:17.7]} 26. Nxd4 {[%clk 0:00:40.8]}
26... Nde5 {[%clk 0:00:15.9]} 27. cxb5 {[%clk 0:00:39.9]} 27... Ra8 {[%clk
0:00:10.7]} 28. f4 {[%clk 0:00:40]} 28... Nd7 {[%clk 0:00:06.7]} 29. Ne2 {[%clk
0:00:33.3]} 29... Ngf8 {[%clk 0:00:04.6]} 30. Nc3 {[%clk 0:00:33]} 1-0